[Event "*** SCC Grand Prix: Titled Tuesday Blitz"]
[Site "Chess.com"]
[Date "2020.10.13"]
[Round "7"]
[White "crazy_but_lazy"]
[Black "esrosenberg"]
[Result "1-0"]
[WhiteElo "2498"]
[BlackElo "2308"]
[TimeControl "180+1"]
[EndTime "11:15:39 PDT"]
[Termination "crazy_but_lazy won by checkmate"]

1. e4 {[%clk 0:03:00.9]} 1... c6 {[%clk 0:02:58.9]} 2. d4 {[%clk 0:02:59.6]}
2... d5 {[%clk 0:02:59.5]} 3. exd5 {[%clk 0:03:00.5]} 3... cxd5 {[%clk
0:02:59.8]} 4. Bd3 {[%clk 0:02:59.9]} 4... Nc6 {[%clk 0:02:59.8]} 5. c3 {[%clk
0:02:59.4]} 5... Qc7 {[%clk 0:03:00]} 6. Ne2 {[%clk 0:02:58.6]} 6... Bg4 {[%clk
0:02:59.5]} 7. O-O {[%clk 0:02:58.3]} 7... a6 {[%clk 0:02:52.5]} 8. Qe1 {[%clk
0:02:57.2]} 8... Nf6 {[%clk 0:02:45.1]} 9. Bf4 {[%clk 0:02:49.3]} 9... Qd7
{[%clk 0:02:28.6]} 10. Nd2 {[%clk 0:02:46.7]} 10... Bf5 {[%clk 0:02:19.4]} 11.
Nc1 {[%clk 0:02:36.5]} 11... g6 {[%clk 0:02:13.7]} 12. Nf3 {[%clk 0:02:33.5]}
12... Bg7 {[%clk 0:02:09.9]} 13. Ne5 {[%clk 0:02:33.6]} 13... Nxe5 {[%clk
0:02:09.7]} 14. Bxe5 {[%clk 0:02:33.9]} 14... O-O {[%clk 0:02:07]} 15. h3 {[%clk
0:02:31.4]} 15... Rfe8 {[%clk 0:01:59.5]} 16. Qe3 {[%clk 0:02:27.1]} 16... Rac8
{[%clk 0:01:52.2]} 17. Bxf5 {[%clk 0:02:16.4]} 17... Qxf5 {[%clk 0:01:51.1]} 18.
Nd3 {[%clk 0:02:16.8]} 18... Nd7 {[%clk 0:01:42.6]} 19. Bxg7 {[%clk 0:02:16.2]}
19... Kxg7 {[%clk 0:01:43.5]} 20. Rfe1 {[%clk 0:02:12.9]} 20... e6 {[%clk
0:01:43.1]} 21. Rad1 {[%clk 0:02:01.2]} 21... g5 {[%clk 0:01:36.8]} 22. Qg3
{[%clk 0:01:57.5]} 22... h6 {[%clk 0:01:32.6]} 23. Ne5 {[%clk 0:01:49.1]} 23...
Nxe5 {[%clk 0:01:32.1]} 24. Rxe5 {[%clk 0:01:50]} 24... Qc2 {[%clk 0:01:28.6]}
25. Rde1 {[%clk 0:01:38.8]} 25... Qxb2 {[%clk 0:01:23]} 26. h4 {[%clk
0:01:38.8]} 26... Rxc3 {[%clk 0:01:22.3]} 27. Qg4 {[%clk 0:01:38.8]} 27... f5
{[%clk 0:01:04.5]} 28. Qh5 {[%clk 0:01:34.9]} 28... Rcc8 {[%clk 0:00:35.7]} 29.
hxg5 {[%clk 0:01:28]} 29... hxg5 {[%clk 0:00:31.2]} 30. Qxg5+ {[%clk 0:01:23.9]}
30... Kf7 {[%clk 0:00:31.2]} 31. Qh5+ {[%clk 0:01:23.8]} 31... Kf6 {[%clk
0:00:20.9]} 32. Rxe6+ {[%clk 0:01:14.1]} 32... Rxe6 {[%clk 0:00:18.9]} 33. Qh6+
{[%clk 0:01:14.5]} 33... Ke7 {[%clk 0:00:16.6]} 34. Qxe6+ {[%clk 0:01:13.3]}
34... Kd8 {[%clk 0:00:14.6]} 35. Qd6# {[%clk 0:01:13.5]} 1-0

[Event "*** SCC Grand Prix: Titled Tuesday Blitz"]
[Site "Chess.com"]
[Date "2020.10.13"]
[Round "7"]
[White "UmarovSabir"]
[Black "jacky72"]
[Result "0-1"]
[WhiteElo "2377"]
[BlackElo "2557"]
[TimeControl "180+1"]
[EndTime "11:15:42 PDT"]
[Termination "jacky72 won by checkmate"]

1. e4 {[%clk 0:02:59.6]} 1... e5 {[%clk 0:02:58.7]} 2. Nf3 {[%clk 0:02:58.1]}
2... Nc6 {[%clk 0:02:58.8]} 3. Bc4 {[%clk 0:02:56.5]} 3... Bc5 {[%clk
0:02:58.3]} 4. b4 {[%clk 0:02:56.4]} 4... Bxb4 {[%clk 0:02:58.3]} 5. c3 {[%clk
0:02:56.6]} 5... Ba5 {[%clk 0:02:58.6]} 6. d4 {[%clk 0:02:56.6]} 6... exd4
{[%clk 0:02:58.3]} 7. Qb3 {[%clk 0:02:55]} 7... Qf6 {[%clk 0:02:48.2]} 8. O-O
{[%clk 0:02:50.6]} 8... Nge7 {[%clk 0:02:45.2]} 9. cxd4 {[%clk 0:02:44.8]} 9...
O-O {[%clk 0:02:45]} 10. e5 {[%clk 0:02:26.9]} 10... Qg6 {[%clk 0:02:45]} 11. d5
{[%clk 0:02:23.2]} 11... Nd8 {[%clk 0:02:41.1]} 12. d6 {[%clk 0:01:36.1]} 12...
cxd6 {[%clk 0:02:32.4]} 13. exd6 {[%clk 0:01:36.1]} 13... Qxd6 {[%clk
0:02:33.3]} 14. Ba3 {[%clk 0:01:35.5]} 14... Qf6 {[%clk 0:02:33.9]} 15. Bb2
{[%clk 0:01:29.5]} 15... Qb6 {[%clk 0:02:32.9]} 16. Qc2 {[%clk 0:01:21.1]} 16...
d5 {[%clk 0:02:25.7]} 17. Bd3 {[%clk 0:01:21]} 17... Ng6 {[%clk 0:02:23.6]} 18.
Nc3 {[%clk 0:01:01.3]} 18... Be6 {[%clk 0:02:15.5]} 19. Ng5 {[%clk 0:00:55.2]}
19... Rc8 {[%clk 0:02:12.4]} 20. Nxe6 {[%clk 0:00:51.7]} 20... Nxe6 {[%clk
0:02:09.3]} 21. Bxg6 {[%clk 0:00:39.7]} 21... hxg6 {[%clk 0:02:07.8]} 22. Qd3
{[%clk 0:00:36.4]} 22... Bxc3 {[%clk 0:02:06.4]} 23. Bxc3 {[%clk 0:00:35.6]}
23... Nf4 {[%clk 0:02:06.9]} 24. Qf3 {[%clk 0:00:22.2]} 24... Rxc3 {[%clk
0:02:02.5]} 25. Qxf4 {[%clk 0:00:22.2]} 25... d4 {[%clk 0:02:02.7]} 26. Rad1
{[%clk 0:00:20.6]} 26... Rd8 {[%clk 0:02:03.1]} 27. Rd2 {[%clk 0:00:20.1]} 27...
d3 {[%clk 0:02:02.6]} 28. Rfd1 {[%clk 0:00:20]} 28... Qd4 {[%clk 0:02:03.1]} 29.
Qxd4 {[%clk 0:00:17.9]} 29... Rxd4 {[%clk 0:02:02.6]} 30. f3 {[%clk 0:00:18.4]}
30... Rc2 {[%clk 0:02:01.7]} 31. Kf2 {[%clk 0:00:18.3]} 31... Ra4 {[%clk
0:01:59.7]} 32. Ke3 {[%clk 0:00:12.5]} 32... Raxa2 {[%clk 0:01:59.4]} 33. Rxd3
{[%clk 0:00:11.8]} 33... Rxg2 {[%clk 0:02:00.3]} 34. h4 {[%clk 0:00:11.9]} 34...
Rh2 {[%clk 0:01:57.6]} 35. Rd8+ {[%clk 0:00:11.3]} 35... Kh7 {[%clk 0:01:57.9]}
36. R1d7 {[%clk 0:00:11.1]} 36... Ra3+ {[%clk 0:01:52.9]} 37. Kf4 {[%clk
0:00:08.9]} 37... Rh3 {[%clk 0:01:53.3]} 38. Rxb7 {[%clk 0:00:06.5]} 38...
Raxf3+ {[%clk 0:01:53.2]} 39. Ke4 {[%clk 0:00:05.8]} 39... f5+ {[%clk 0:01:51]}
40. Ke5 {[%clk 0:00:05.8]} 40... Re3+ {[%clk 0:01:49.6]} 41. Kf4 {[%clk
0:00:05.3]} 41... Re4+ {[%clk 0:01:49.6]} 42. Kg5 {[%clk 0:00:04.5]} 42... Rg3#
{[%clk 0:01:49.8]} 0-1

[Event "*** SCC Grand Prix: Titled Tuesday Blitz"]
[Site "Chess.com"]
[Date "2020.10.13"]
[Round "7"]
[White "tan275"]
[Black "WonderChampion"]
[Result "0-1"]
[WhiteElo "2216"]
[BlackElo "2029"]
[TimeControl "180+1"]
[EndTime "11:15:43 PDT"]
[Termination "WonderChampion won by resignation"]

1. d4 {[%clk 0:03:00.9]} 1... d5 {[%clk 0:02:58.5]} 2. c4 {[%clk 0:03:00.6]}
2... e6 {[%clk 0:02:58]} 3. Nf3 {[%clk 0:03:00.4]} 3... c6 {[%clk 0:02:54.3]} 4.
g3 {[%clk 0:02:55.7]} 4... dxc4 {[%clk 0:02:53.1]} 5. Bg2 {[%clk 0:02:56]} 5...
Nf6 {[%clk 0:02:51.6]} 6. O-O {[%clk 0:02:55.4]} 6... Be7 {[%clk 0:02:49.6]} 7.
Ne5 {[%clk 0:02:50.6]} 7... O-O {[%clk 0:02:44.3]} 8. Na3 {[%clk 0:02:47]} 8...
Bxa3 {[%clk 0:02:41.1]} 9. bxa3 {[%clk 0:02:46.8]} 9... Nbd7 {[%clk 0:02:39.9]}
10. Nxc4 {[%clk 0:02:46]} 10... Nb6 {[%clk 0:02:40.1]} 11. Ne5 {[%clk
0:02:44.2]} 11... Bd7 {[%clk 0:02:38.9]} 12. Bd2 {[%clk 0:02:33.3]} 12... Nbd5
{[%clk 0:02:37.4]} 13. Rb1 {[%clk 0:02:30.3]} 13... Qc7 {[%clk 0:02:36.6]} 14.
Qb3 {[%clk 0:02:20.3]} 14... b6 {[%clk 0:02:35]} 15. Rfc1 {[%clk 0:02:17.9]}
15... Rac8 {[%clk 0:02:32.2]} 16. a4 {[%clk 0:02:04]} 16... Qd6 {[%clk
0:02:26.3]} 17. Rd1 {[%clk 0:01:29.5]} 17... Rfd8 {[%clk 0:02:21.4]} 18. e4
{[%clk 0:01:27.4]} 18... Ne7 {[%clk 0:02:20]} 19. Bb4 {[%clk 0:01:22]} 19... c5
{[%clk 0:02:14.2]} 20. Nxd7 {[%clk 0:01:11.3]} 20... cxb4 {[%clk 0:01:56.4]} 21.
Nxf6+ {[%clk 0:01:07.8]} 21... gxf6 {[%clk 0:01:57.3]} 22. Qxb4 {[%clk
0:01:05.7]} 22... Qd7 {[%clk 0:01:57.2]} 23. d5 {[%clk 0:00:50.8]} 23... exd5
{[%clk 0:01:56.1]} 24. exd5 {[%clk 0:00:50.9]} 24... Rc5 {[%clk 0:01:51.4]} 25.
d6 {[%clk 0:00:18.3]} 25... Nc6 {[%clk 0:01:44.3]} 26. Qf4 {[%clk 0:00:17.7]}
26... Rf5 {[%clk 0:01:39]} 27. Qg4+ {[%clk 0:00:17.2]} 27... Kh8 {[%clk
0:01:35]} 28. Be4 {[%clk 0:00:12.8]} 28... Rc5 {[%clk 0:01:29.7]} 29. Qf4 {[%clk
0:00:10.9]} 29... Qe6 {[%clk 0:01:22]} 30. Bf5 {[%clk 0:00:09.6]} 30... Qxf5
{[%clk 0:01:20.4]} 31. Qxf5 {[%clk 0:00:08.3]} 31... Rxf5 {[%clk 0:01:21.3]} 0-1

[Event "*** SCC Grand Prix: Titled Tuesday Blitz"]
[Site "Chess.com"]
[Date "2020.10.13"]
[Round "7"]
[White "GMSrinath"]
[Black "AliKa2810"]
[Result "0-1"]
[WhiteElo "2798"]
[BlackElo "2611"]
[TimeControl "180+1"]
[EndTime "11:15:49 PDT"]
[Termination "AliKa2810 won by resignation"]

1. Nf3 {[%clk 0:02:53.9]} 1... d5 {[%clk 0:02:59.4]} 2. c4 {[%clk 0:02:53.8]}
2... d4 {[%clk 0:02:58.9]} 3. e3 {[%clk 0:02:52.3]} 3... c5 {[%clk 0:02:59.1]}
4. exd4 {[%clk 0:02:51.7]} 4... cxd4 {[%clk 0:03:00]} 5. d3 {[%clk 0:02:52.4]}
5... Nc6 {[%clk 0:03:00.2]} 6. g3 {[%clk 0:02:53.1]} 6... Nf6 {[%clk 0:02:58.7]}
7. Bg2 {[%clk 0:02:53.7]} 7... e5 {[%clk 0:02:58.8]} 8. O-O {[%clk 0:02:54.1]}
8... Bd6 {[%clk 0:02:56.9]} 9. a3 {[%clk 0:02:52]} 9... a5 {[%clk 0:02:56.2]}
10. Re1 {[%clk 0:02:52]} 10... O-O {[%clk 0:02:55.5]} 11. Nbd2 {[%clk
0:02:51.5]} 11... Re8 {[%clk 0:02:53.6]} 12. Ne4 {[%clk 0:02:50.8]} 12... Nxe4
{[%clk 0:02:53.1]} 13. Rxe4 {[%clk 0:02:51.7]} 13... Bf5 {[%clk 0:02:53.3]} 14.
Re1 {[%clk 0:02:51.7]} 14... h6 {[%clk 0:02:52.1]} 15. Qc2 {[%clk 0:02:47.5]}
15... Qf6 {[%clk 0:02:50.4]} 16. Nd2 {[%clk 0:02:46.2]} 16... Qg6 {[%clk
0:02:50.1]} 17. Ne4 {[%clk 0:02:44.6]} 17... Bf8 {[%clk 0:02:46.8]} 18. f4
{[%clk 0:02:38.5]} 18... Be6 {[%clk 0:02:24.6]} 19. fxe5 {[%clk 0:02:33.7]}
19... Nxe5 {[%clk 0:02:24.1]} 20. Bf4 {[%clk 0:02:33.4]} 20... Ng4 {[%clk
0:02:23]} 21. h3 {[%clk 0:02:20.8]} 21... Ne3 {[%clk 0:02:22.1]} 22. Bxe3 {[%clk
0:02:17.3]} 22... dxe3 {[%clk 0:02:23]} 23. Rxe3 {[%clk 0:02:18.1]} 23... f5
{[%clk 0:02:22]} 24. Nf2 {[%clk 0:02:07.8]} 24... Bc5 {[%clk 0:02:21.3]} 25. Rf3
{[%clk 0:02:05.8]} 25... Bd7 {[%clk 0:02:21.5]} 26. d4 {[%clk 0:01:53.6]} 26...
Bxd4 {[%clk 0:02:20.7]} 27. Rd1 {[%clk 0:01:54.2]} 27... Bc6 {[%clk 0:02:16]}
28. Qxf5 {[%clk 0:01:33.2]} 28... Bxf2+ {[%clk 0:01:30.4]} 29. Kxf2 {[%clk
0:01:12.2]} 29... Re2+ {[%clk 0:01:22.5]} 30. Kxe2 {[%clk 0:01:08.3]} 30...
Bxf3+ {[%clk 0:01:21.8]} 31. Qxf3 {[%clk 0:01:08.7]} 31... Qc2+ {[%clk
0:01:19.4]} 32. Rd2 {[%clk 0:00:49.2]} 32... Re8+ {[%clk 0:01:18.4]} 33. Qe3
{[%clk 0:00:46]} 33... Rxe3+ {[%clk 0:01:12.3]} 34. Kxe3 {[%clk 0:00:46.9]}
34... Qb3+ {[%clk 0:01:12]} 35. Kf2 {[%clk 0:00:46]} 35... b6 {[%clk 0:01:10.8]}
36. c5 {[%clk 0:00:41.4]} 36... Qf7+ {[%clk 0:01:08.9]} 37. Kg1 {[%clk
0:00:39.3]} 37... Qe7 {[%clk 0:01:06.4]} 38. c6 {[%clk 0:00:36.3]} 38... Qe1+
{[%clk 0:01:05.3]} 0-1

[Event "*** SCC Grand Prix: Titled Tuesday Blitz"]
[Site "Chess.com"]
[Date "2020.10.13"]
[Round "7"]
[White "onnoelgersma"]
[Black "tandaleo"]
[Result "1-0"]
[WhiteElo "2487"]
[BlackElo "2341"]
[TimeControl "180+1"]
[EndTime "11:15:50 PDT"]
[Termination "onnoelgersma won by resignation"]

1. Nf3 {[%clk 0:03:00.9]} 1... Nf6 {[%clk 0:02:55.7]} 2. d4 {[%clk 0:02:51.7]}
2... e6 {[%clk 0:02:46]} 3. c4 {[%clk 0:02:50.4]} 3... d5 {[%clk 0:02:39.2]} 4.
e3 {[%clk 0:02:43.2]} 4... b6 {[%clk 0:02:33.7]} 5. Nc3 {[%clk 0:02:41.9]} 5...
Bb7 {[%clk 0:02:33.6]} 6. Bd2 {[%clk 0:02:42.4]} 6... Bd6 {[%clk 0:02:33.5]} 7.
Bd3 {[%clk 0:02:43]} 7... O-O {[%clk 0:02:33.4]} 8. Rc1 {[%clk 0:02:40.9]} 8...
Nbd7 {[%clk 0:02:30.7]} 9. cxd5 {[%clk 0:02:39.3]} 9... Nxd5 {[%clk 0:02:14.2]}
10. O-O {[%clk 0:02:31.5]} 10... a6 {[%clk 0:02:05.1]} 11. e4 {[%clk 0:02:24.1]}
11... Nxc3 {[%clk 0:01:38.3]} 12. bxc3 {[%clk 0:02:22.8]} 12... c5 {[%clk
0:01:37.7]} 13. e5 {[%clk 0:02:09.2]} 13... Be7 {[%clk 0:01:34.7]} 14. Qe2
{[%clk 0:02:07.3]} 14... b5 {[%clk 0:01:29.3]} 15. a4 {[%clk 0:01:47.6]} 15...
c4 {[%clk 0:01:26.1]} 16. Bc2 {[%clk 0:01:46.4]} 16... Nb6 {[%clk 0:01:24.6]}
17. Rb1 {[%clk 0:01:42]} 17... Bc6 {[%clk 0:01:12]} 18. axb5 {[%clk 0:01:36.6]}
18... axb5 {[%clk 0:01:12.9]} 19. Ra1 {[%clk 0:01:35.7]} 19... Nd5 {[%clk
0:01:12]} 20. Qe4 {[%clk 0:01:31.3]} 20... g6 {[%clk 0:01:06.3]} 21. Qg4 {[%clk
0:01:31]} 21... b4 {[%clk 0:00:40.1]} 22. h4 {[%clk 0:01:24.3]} 22... h5 {[%clk
0:00:36.7]} 23. Qg3 {[%clk 0:01:22.2]} 23... Kg7 {[%clk 0:00:26.5]} 24. cxb4
{[%clk 0:00:57.5]} 24... c3 {[%clk 0:00:24]} 25. Bg5 {[%clk 0:00:55.4]} 25...
Bxg5 {[%clk 0:00:23]} 26. Nxg5 {[%clk 0:00:48.8]} 26... Nxb4 {[%clk 0:00:19.5]}
27. Nxe6+ {[%clk 0:00:48.6]} 1-0

[Event "*** SCC Grand Prix: Titled Tuesday Blitz"]
[Site "Chess.com"]
[Date "2020.10.13"]
[Round "7"]
[White "tk22h"]
[Black "CzechmVIII"]
[Result "0-1"]
[WhiteElo "2307"]
[BlackElo "2182"]
[TimeControl "180+1"]
[EndTime "11:15:50 PDT"]
[Termination "CzechmVIII won by resignation"]

1. d4 {[%clk 0:02:59.4]} 1... Nf6 {[%clk 0:02:59.5]} 2. c4 {[%clk 0:02:59]} 2...
c5 {[%clk 0:02:59.7]} 3. d5 {[%clk 0:02:58.1]} 3... b5 {[%clk 0:02:59.9]} 4.
cxb5 {[%clk 0:02:58]} 4... a6 {[%clk 0:03:00.2]} 5. b6 {[%clk 0:02:57.5]} 5...
g6 {[%clk 0:02:59.4]} 6. Nc3 {[%clk 0:02:57.2]} 6... Bg7 {[%clk 0:02:58.8]} 7.
e4 {[%clk 0:02:57.2]} 7... d6 {[%clk 0:02:58.8]} 8. f4 {[%clk 0:02:57.1]} 8...
O-O {[%clk 0:02:56.2]} 9. Nf3 {[%clk 0:02:57.2]} 9... Qxb6 {[%clk 0:02:53.4]}
10. Be2 {[%clk 0:02:56.6]} 10... e6 {[%clk 0:02:51.7]} 11. dxe6 {[%clk
0:02:55.3]} 11... Bxe6 {[%clk 0:02:48.6]} 12. O-O {[%clk 0:02:53.9]} 12... Nc6
{[%clk 0:02:44.2]} 13. Rb1 {[%clk 0:02:42.8]} 13... Rfd8 {[%clk 0:02:37.8]} 14.
Be3 {[%clk 0:02:42.3]} 14... Ng4 {[%clk 0:02:36.2]} 15. Bd2 {[%clk 0:02:40.8]}
15... c4+ {[%clk 0:02:32.2]} 16. Kh1 {[%clk 0:02:38.7]} 16... Nf2+ {[%clk
0:02:26.9]} 17. Rxf2 {[%clk 0:02:38.7]} 17... Qxf2 {[%clk 0:02:27.5]} 18. Be1
{[%clk 0:02:33.2]} 18... Qb6 {[%clk 0:02:22]} 19. Ng5 {[%clk 0:02:25]} 19...
Rac8 {[%clk 0:01:20.8]} 20. Nxe6 {[%clk 0:02:19.7]} 20... fxe6 {[%clk
0:01:21.7]} 21. Bxc4 {[%clk 0:02:19.5]} 21... Nd4 {[%clk 0:01:12.1]} 22. Bd3
{[%clk 0:02:19.5]} 22... Qb7 {[%clk 0:00:45.7]} 23. Qg4 {[%clk 0:02:15]} 23...
Qf7 {[%clk 0:00:34.7]} 24. Bf2 {[%clk 0:02:12.9]} 24... Rf8 {[%clk 0:00:31.4]}
25. Be3 {[%clk 0:02:12.7]} 25... Nb5 {[%clk 0:00:23.5]} 26. Nxb5 {[%clk
0:02:08.2]} 26... axb5 {[%clk 0:00:23.8]} 27. Bxb5 {[%clk 0:02:03.8]} 27... Rc2
{[%clk 0:00:23.7]} 28. b3 {[%clk 0:01:58.8]} 28... Kh8 {[%clk 0:00:20.2]} 29.
Bc4 {[%clk 0:01:58.3]} 29... Qb7 {[%clk 0:00:16.1]} 30. Qxe6 {[%clk 0:01:52.8]}
30... Rxa2 {[%clk 0:00:14.9]} 31. h4 {[%clk 0:01:51.3]} 31... Qa8 {[%clk
0:00:13.6]} 32. Bd5 {[%clk 0:01:49.6]} 32... Qa5 {[%clk 0:00:11.7]} 33. Qxd6
{[%clk 0:01:43.1]} 33... Ra1 {[%clk 0:00:11]} 34. Rxa1 {[%clk 0:01:41.4]} 34...
Qxa1+ {[%clk 0:00:11.9]} 35. Kh2 {[%clk 0:01:41.1]} 35... Qe1 {[%clk 0:00:12.5]}
36. Bd4 {[%clk 0:01:19.9]} 36... Qxh4+ {[%clk 0:00:12]} 37. Kg1 {[%clk
0:01:19.6]} 37... Qe1+ {[%clk 0:00:11.8]} 38. Kh2 {[%clk 0:01:19.2]} 38... Qh4+
{[%clk 0:00:11.8]} 39. Kg1 {[%clk 0:01:16.8]} 39... Bxd4+ {[%clk 0:00:09.6]} 0-1

[Event "*** SCC Grand Prix: Titled Tuesday Blitz"]
[Site "Chess.com"]
[Date "2020.10.13"]
[Round "7"]
[White "nelsoncopa"]
[Black "PawnEatingZombie"]
[Result "0-1"]
[WhiteElo "1811"]
[BlackElo "2180"]
[TimeControl "180+1"]
[EndTime "11:15:50 PDT"]
[Termination "PawnEatingZombie won on time"]

1. d4 {[%clk 0:03:00.9]} 1... d5 {[%clk 0:02:58.1]} 2. c4 {[%clk 0:03:00.4]}
2... e6 {[%clk 0:02:54.4]} 3. Nc3 {[%clk 0:02:58.8]} 3... Bb4 {[%clk 0:02:53.1]}
4. Qc2 {[%clk 0:02:57.9]} 4... dxc4 {[%clk 0:02:44.6]} 5. Nf3 {[%clk 0:02:53.2]}
5... b5 {[%clk 0:02:43.4]} 6. a4 {[%clk 0:02:51.6]} 6... c6 {[%clk 0:02:41.9]}
7. axb5 {[%clk 0:02:51.1]} 7... cxb5 {[%clk 0:02:41.7]} 8. e3 {[%clk 0:02:51.4]}
8... Bb7 {[%clk 0:02:35]} 9. Be2 {[%clk 0:02:50.2]} 9... Nd7 {[%clk 0:02:25.7]}
10. O-O {[%clk 0:02:35.5]} 10... a6 {[%clk 0:02:25.7]} 11. b3 {[%clk 0:02:34.2]}
11... cxb3 {[%clk 0:02:21.3]} 12. Qxb3 {[%clk 0:02:33.5]} 12... Be7 {[%clk
0:02:19.9]} 13. Ba3 {[%clk 0:02:28.7]} 13... Ngf6 {[%clk 0:02:18.5]} 14. Bxe7
{[%clk 0:02:21.6]} 14... Qxe7 {[%clk 0:02:19.4]} 15. Nd2 {[%clk 0:02:19.6]}
15... O-O {[%clk 0:02:17.9]} 16. h3 {[%clk 0:02:18.9]} 16... Rfc8 {[%clk
0:02:17]} 17. Rfc1 {[%clk 0:02:17.9]} 17... Nd5 {[%clk 0:02:03.4]} 18. Nxd5
{[%clk 0:02:16.9]} 18... Bxd5 {[%clk 0:02:02.1]} 19. Qb2 {[%clk 0:02:15.7]}
19... Qd8 {[%clk 0:01:35.3]} 20. Qb4 {[%clk 0:02:03.4]} 20... Nb6 {[%clk
0:01:31.7]} 21. e4 {[%clk 0:02:00.2]} 21... Bb7 {[%clk 0:01:28.3]} 22. Nb3
{[%clk 0:01:54.2]} 22... Bxe4 {[%clk 0:01:24.9]} 23. Nc5 {[%clk 0:01:50.1]}
23... Bd5 {[%clk 0:01:14.1]} 24. Bd3 {[%clk 0:01:18.4]} 24... Qg5 {[%clk
0:01:03.6]} 25. Bf1 {[%clk 0:00:53.7]} 25... h5 {[%clk 0:00:56]} 0-1

[Event "*** SCC Grand Prix: Titled Tuesday Blitz"]
[Site "Chess.com"]
[Date "2020.10.13"]
[Round "7"]
[White "aloe_normansen"]
[Black "Colombiano07"]
[Result "0-1"]
[WhiteElo "2348"]
[BlackElo "2254"]
[TimeControl "180+1"]
[EndTime "11:15:55 PDT"]
[Termination "Colombiano07 won on time"]

1. e4 {[%clk 0:03:00.8]} 1... e6 {[%clk 0:02:59.9]} 2. d4 {[%clk 0:03:00.5]}
2... d5 {[%clk 0:03:00.6]} 3. Nc3 {[%clk 0:03:00.8]} 3... Nf6 {[%clk 0:03:01.1]}
4. e5 {[%clk 0:03:00.8]} 4... Nfd7 {[%clk 0:03:01.6]} 5. f4 {[%clk 0:03:00.5]}
5... c5 {[%clk 0:03:02.2]} 6. Nf3 {[%clk 0:03:00.8]} 6... Nc6 {[%clk 0:03:02.8]}
7. Be3 {[%clk 0:03:00.2]} 7... h6 {[%clk 0:03:01.8]} 8. Qd2 {[%clk 0:02:59.2]}
8... g5 {[%clk 0:03:01.8]} 9. fxg5 {[%clk 0:02:56.8]} 9... cxd4 {[%clk
0:03:02.1]} 10. Nxd4 {[%clk 0:02:53.9]} 10... Ndxe5 {[%clk 0:03:02.2]} 11. Be2
{[%clk 0:02:40.3]} 11... Bd7 {[%clk 0:02:55.4]} 12. Nxc6 {[%clk 0:02:00.6]}
12... Nxc6 {[%clk 0:02:47.7]} 13. g6 {[%clk 0:01:23.2]} 13... fxg6 {[%clk
0:02:41.8]} 14. Bd3 {[%clk 0:01:20.4]} 14... Ne5 {[%clk 0:02:37.4]} 15. O-O
{[%clk 0:01:13.8]} 15... Qc7 {[%clk 0:02:31.8]} 16. Bd4 {[%clk 0:01:03.5]} 16...
Bd6 {[%clk 0:02:23.9]} 17. Bxe5 {[%clk 0:00:58.1]} 17... Bxe5 {[%clk 0:02:23.6]}
18. Bxg6+ {[%clk 0:00:58.4]} 18... Kd8 {[%clk 0:02:24.5]} 19. h3 {[%clk
0:00:54.1]} 19... Kc8 {[%clk 0:02:08.3]} 20. Rf7 {[%clk 0:00:51]} 20... Qb6+
{[%clk 0:01:56.7]} 21. Kh1 {[%clk 0:00:35]} 21... Qxb2 {[%clk 0:01:56.4]} 22.
Raf1 {[%clk 0:00:34.5]} 22... Qxc3 {[%clk 0:01:54.4]} 23. Rf8+ {[%clk
0:00:30.9]} 23... Kc7 {[%clk 0:01:50.4]} 24. Qxc3+ {[%clk 0:00:17.6]} 24... Bxc3
{[%clk 0:01:51.3]} 25. R8f7 {[%clk 0:00:17.5]} 25... Kd6 {[%clk 0:01:46.9]} 26.
Bd3 {[%clk 0:00:17.2]} 26... Rae8 {[%clk 0:01:37.5]} 27. Rb1 {[%clk 0:00:14.5]}
27... Bc6 {[%clk 0:01:36.4]} 28. Rb3 {[%clk 0:00:05.4]} 28... Re7 {[%clk
0:01:36.1]} 29. Rxe7 {[%clk 0:00:04.8]} 29... Kxe7 {[%clk 0:01:37]} 30. Rxc3
{[%clk 0:00:04.1]} 30... e5 {[%clk 0:01:34]} 31. Bf1 {[%clk 0:00:02.8]} 31... d4
{[%clk 0:01:33.8]} 32. Rg3 {[%clk 0:00:03.1]} 32... Kd6 {[%clk 0:01:32.9]} 33.
Rg6+ {[%clk 0:00:03]} 33... Kc5 {[%clk 0:01:32.4]} 34. Rg4 {[%clk 0:00:03.9]}
34... e4 {[%clk 0:01:31.3]} 35. Kh2 {[%clk 0:00:04.4]} 35... Rf8 {[%clk
0:01:29.9]} 36. Be2 {[%clk 0:00:03.6]} 36... Rf2 {[%clk 0:01:29.3]} 37. Bd1
{[%clk 0:00:03.1]} 37... Rd2 {[%clk 0:01:28.9]} 0-1

[Event "*** SCC Grand Prix: Titled Tuesday Blitz"]
[Site "Chess.com"]
[Date "2020.10.13"]
[Round "7"]
[White "esapunov"]
[Black "karinachess1"]
[Result "1-0"]
[WhiteElo "2656"]
[BlackElo "2521"]
[TimeControl "180+1"]
[EndTime "11:16:01 PDT"]
[Termination "esapunov won on time"]

1. c4 {[%clk 0:03:00.9]} 1... f5 {[%clk 0:02:53.5]} 2. Nf3 {[%clk 0:03:00]} 2...
Nf6 {[%clk 0:02:53.7]} 3. Nc3 {[%clk 0:02:59.6]} 3... g6 {[%clk 0:02:53.8]} 4.
d4 {[%clk 0:02:59.7]} 4... Bg7 {[%clk 0:02:54.1]} 5. Bf4 {[%clk 0:03:00]} 5...
O-O {[%clk 0:02:53.2]} 6. e3 {[%clk 0:03:00.5]} 6... d6 {[%clk 0:02:53.3]} 7. h3
{[%clk 0:03:00.9]} 7... Nc6 {[%clk 0:02:47.7]} 8. Bh2 {[%clk 0:02:57.6]} 8... a6
{[%clk 0:02:47.5]} 9. Be2 {[%clk 0:02:56.3]} 9... Qe8 {[%clk 0:02:47.7]} 10. O-O
{[%clk 0:02:55.4]} 10... e5 {[%clk 0:02:45.1]} 11. Rc1 {[%clk 0:02:49.3]} 11...
e4 {[%clk 0:02:38.2]} 12. Nd2 {[%clk 0:02:48.6]} 12... Bd7 {[%clk 0:02:38.5]}
13. a3 {[%clk 0:02:47.4]} 13... g5 {[%clk 0:02:30.1]} 14. b4 {[%clk 0:02:43.3]}
14... Ne7 {[%clk 0:02:18.6]} 15. c5 {[%clk 0:02:41.7]} 15... dxc5 {[%clk
0:02:02.7]} 16. Qb3+ {[%clk 0:02:33]} 16... Kh8 {[%clk 0:02:00.8]} 17. bxc5
{[%clk 0:02:33.1]} 17... c6 {[%clk 0:01:37.5]} 18. Nc4 {[%clk 0:02:22.1]} 18...
f4 {[%clk 0:01:08.7]} 19. exf4 {[%clk 0:02:17.8]} 19... Nf5 {[%clk 0:00:58.4]}
20. fxg5 {[%clk 0:02:06.1]} 20... Nxd4 {[%clk 0:00:57.2]} 21. Qd1 {[%clk
0:02:05.9]} 21... Nd5 {[%clk 0:00:54.9]} 22. Nd6 {[%clk 0:01:58.8]} 22... Qg6
{[%clk 0:00:48.1]} 23. Bh5 {[%clk 0:01:44.5]} 23... Qxg5 {[%clk 0:00:39.1]} 24.
Ncxe4 {[%clk 0:01:44]} 24... Qe7 {[%clk 0:00:30.1]} 25. Rc4 {[%clk 0:01:35.8]}
25... Nf5 {[%clk 0:00:23.2]} 26. Re1 {[%clk 0:01:31.8]} 26... Be6 {[%clk
0:00:16.3]} 27. Nxf5 {[%clk 0:01:23.8]} 27... Rxf5 {[%clk 0:00:17.2]} 28. Nd6
{[%clk 0:01:21.5]} 28... Rf6 {[%clk 0:00:12.9]} 29. Rce4 {[%clk 0:01:18.8]}
29... Qd7 {[%clk 0:00:12.3]} 30. Bg4 {[%clk 0:01:13.4]} 30... Bxg4 {[%clk
0:00:11.1]} 31. Qxg4 {[%clk 0:01:13.6]} 31... Qxg4 {[%clk 0:00:06.2]} 32. hxg4
{[%clk 0:01:13.5]} 32... h6 {[%clk 0:00:06.6]} 33. Nf5 {[%clk 0:01:09.6]} 33...
Rff8 {[%clk 0:00:03.4]} 34. Re6 {[%clk 0:01:05.4]} 1-0